bitfinex/quotes_BTCUSD_20240731
["timestamp","ask_amount","ask_price","bid_price","bid_amount"]
[1722384239507,0.04511801,66252.0,66251.0,0.514922]
[1722384239714,0.06767449,66254.0,66251.0,0.363982]
[1722384239934,0.05433463,66252.0,66251.0,0.514923]
[1722384240331,0.06767511,66254.0,66253.0,0.150935]
[1722384240542,0.05498187,66254.0,66253.0,0.150935]
[1722384240937,0.12265775,66254.0,66253.0,0.150935]
[1722384241189,0.12265775,66254.0,66252.0,0.150938]
[1722384241411,0.09023221,66255.0,66252.0,0.150938]
[1722384241412,0.122655,66253.0,66252.0,0.150938]
[1722384242062,0.06767911,66253.0,66252.0,0.150938]
[1722384242262,0.05452845,66253.0,66252.0,0.149938]
[1722384242485,0.05452845,66253.0,66252.0,0.163938]
[1722384242691,0.05452845,66253.0,66252.0,0.149938]
[1722384243056,0.05552845,66253.0,66252.0,0.169938]
[1722384243255,0.05652844,66253.0,66252.0,0.169938]
[1722384243448,0.12420755,66253.0,66252.0,0.169938]
[1722384243657,0.05552845,66253.0,66252.0,0.02]
[1722384243862,0.05552845,66253.0,66252.0,0.170938]
[1722384244246,0.05552845,66253.0,66252.0,0.02]
[1722384244247,0.11157073,66253.0,66252.0,0.02]
[1722384244480,0.81021045,66253.0,66252.0,0.02]
[1722384244956,0.81021045,66253.0,66252.0,0.005]
[1722384245196,0.81050275,66253.0,66252.0,0.005]
[1722384247290,0.81133275,66253.0,66252.0,0.005]
[1722384247909,0.81228293,66253.0,66252.0,0.005]
[1722384248155,0.81133275,66253.0,66252.0,0.005]
[1722384248659,0.81117785,66253.0,66252.0,0.005]
[1722384250109,0.05649585,66253.0,66252.0,0.0853]
[1722384250324,0.20743185,66253.0,66252.0,0.0853]
[1722384250934,0.50930485,66253.0,66252.0,0.0853]
[1722384251285,0.50930485,66253.0,66252.0,0.005]
[1722384251696,0.50930278,66253.0,66252.0,0.005]
[1722384251903,0.60489186,66253.0,66252.0,0.005]
[1722384252124,0.6048281,66253.0,66252.0,0.005]
[1722384253409,0.74040486,66253.0,66252.0,0.005]
[1722384254834,0.6048281,66253.0,66252.0,0.005]
[1722384255055,0.50916601,66253.0,66252.0,0.005]
[1722384256693,0.05781698,66253.0,66252.0,0.0655]
[1722384256904,0.05781698,66253.0,66252.0,0.599215]
[1722384257112,0.05635701,66253.0,66252.0,0.297338]
[1722384257342,0.19203598,66253.0,66252.0,0.599215]
[1722384257602,0.05635701,66253.0,66252.0,0.599215]
[1722384258540,0.19230325,66253.0,66252.0,0.599215]
[1722384258744,0.05662894,66253.0,66252.0,0.599215]
[1722384259564,0.05662894,66253.0,66252.0,0.297338]
[1722384261417,0.05662894,66253.0,66252.0,0.1464]
[1722384261615,0.00183,66253.0,66252.0,0.297338]
[1722384261831,0.00183,66253.0,66252.0,0.599215]
[1722384262037,0.05710919,66253.0,66252.0,0.599215]
[1722384262243,0.05710919,66253.0,66252.0,0.53931015]
[1722384263098,0.05710919,66253.0,66252.0,1.21841131]
[1722384263336,0.00183,66253.0,66252.0,1.21841131]
[1722384263539,0.00183,66253.0,66252.0,1.52028831]
[1722384263742,0.00183,66253.0,66252.0,1.21841131]
[1722384263950,0.00183,66253.0,66252.0,1.14306415]
[1722384264376,0.00083,66253.0,66252.0,1.14306415]
[1722384264579,0.00183,66253.0,66252.0,1.14406415]
[1722384265168,0.00283,66253.0,66252.0,1.15806415]
[1722384265417,0.09330305,66253.0,66252.0,0.10149515]
[1722384265623,0.09330305,66253.0,66252.0,0.25243315]
[1722384265624,0.05896913,66253.0,66252.0,0.25243315]
[1722384265826,0.00283,66253.0,66252.0,0.25243315]
[1722384266004,0.00283,66253.0,66252.0,0.246838]
[1722384266177,0.00283,66253.0,66252.0,0.0959]
[1722384266376,0.00283,66253.0,66252.0,0.015]
[1722384266377,1.0698249,66253.0,66252.0,0.015]
[1722384266576,0.601639,66253.0,66252.0,0.015]
[1722384266982,0.521239,66253.0,66252.0,0.015]
[1722384267404,0.823112,66253.0,66252.0,0.015]
[1722384267635,0.822112,66253.0,66252.0,0.014]
[1722384268110,0.823112,66253.0,66252.0,0.027]
[1722384268493,0.822112,66253.0,66252.0,0.013]
[1722384268949,0.823112,66253.0,66252.0,0.027]
[1722384271549,0.84895594,66253.0,66252.0,0.027]
[1722384272538,0.823112,66253.0,66252.0,0.027]
[1722384275151,1.201185,66253.0,66252.0,0.027]
[1722384275435,1.301185,66253.0,66252.0,0.027]
[1722384276465,1.224985,66253.0,66252.0,0.027]
[1722384280274,1.224985,66253.0,66252.0,0.027913]
[1722384280512,1.37567932,66253.0,66252.0,0.027913]
[1722384282958,1.224985,66253.0,66252.0,0.027913]
[1722384284378,1.37028388,66253.0,66252.0,0.027913]
[1722384284828,1.45348388,66253.0,66252.0,0.027913]
[1722384285051,0.70093788,66253.0,66252.0,0.027913]
[1722384285544,0.61115061,66253.0,66252.0,0.027913]
[1722384285720,1.07943084,66253.0,66252.0,0.013913]
[1722384285928,1.07943084,66253.0,66252.0,0.018913]
[1722384286287,1.07943084,66253.0,66252.0,0.013913]
[1722384286603,1.07943084,66253.0,66252.0,0.012913]
[1722384286924,1.08098504,66253.0,66252.0,0.004913]
[1722384287128,1.08198504,66253.0,66252.0,0.012913]
[1722384287491,1.08043084,66253.0,66252.0,0.008913]
[1722384287693,1.08143084,66253.0,66252.0,0.015913]
[1722384288105,1.00457194,66253.0,66252.0,0.015913]
[1722384288864,0.67765061,66253.0,66252.0,0.015913]
[1722384289066,1.07024029,66253.0,66252.0,0.015913]
[1722384289289,1.37211329,66253.0,66252.0,0.015913]
[1722384290642,1.37235691,66253.0,66252.0,0.015913]
[1722384290850,1.52305123,66253.0,66252.0,0.015913]
[1722384291930,1.5224078,66253.0,66252.0,0.015913]
[1722384293800,1.37171348,66253.0,66252.0,0.015913]
[1722384295246,1.37186575,66253.0,66252.0,0.015913]
[1722384295424,1.06999275,66253.0,66252.0,0.015913]
[1722384295827,1.37186575,66253.0,66252.0,0.015913]
[1722384297684,1.06999275,66253.0,66252.0,0.015913]
[1722384297811,1.00449275,66253.0,66252.0,0.015913]
[1722384298011,1.30636575,66253.0,66252.0,0.015913]
[1722384298408,1.160385,66253.0,66252.0,0.015913]
[1722384298610,1.305776,66253.0,66252.0,0.015913]
[1722384298924,1.160385,66253.0,66252.0,0.015913]
[1722384299141,1.00362284,66253.0,66252.0,0.015913]
[1722384299313,1.09042284,66253.0,66252.0,0.015913]
[1722384299548,1.39229584,66253.0,66252.0,0.015913]
[1722384299718,1.39229584,66253.0,66252.0,0.096113]
[1722384300202,1.53242384,66253.0,66252.0,0.015913]
[1722384300956,1.59292384,66253.0,66252.0,0.015913]
[1722384301156,1.59295425,66253.0,66252.0,0.015913]
[1722384302616,1.45282625,66253.0,66252.0,0.015913]
[1722384304138,1.45260224,66253.0,66252.0,0.015913]
[1722384304953,1.53060224,66253.0,66252.0,0.015913]
[1722384307317,1.52992963,66253.0,66252.0,0.015913]
[1722384307729,1.52992821,66253.0,66252.0,0.015913]
[1722384308141,1.39142821,66253.0,66252.0,0.015913]
[1722384310552,1.39229902,66253.0,66252.0,0.015913]
[1722384311497,1.61516965,66253.0,66252.0,0.015913]
[1722384311706,1.39229902,66253.0,66252.0,0.015913]
[1722384312418,1.61531047,66253.0,66252.0,0.015913]
[1722384312558,1.39229902,66253.0,66252.0,0.015913]
[1722384313315,1.61531047,66253.0,66252.0,0.015913]
[1722384313522,1.39787932,66253.0,66252.0,0.015913]
[1722384313711,1.76713217,66253.0,66252.0,0.015913]
[1722384315169,1.61643785,66253.0,66252.0,0.015913]
[1722384315317,0.70288388,66253.0,66252.0,0.151713]
[1722384315524,1.00475688,66253.0,66252.0,0.151713]
[1722384315937,1.39342988,66253.0,66252.0,0.091313]
[1722384316134,1.52578478,66253.0,66252.0,0.015913]
[1722384316340,1.74879275,66253.0,66252.0,0.015913]
[1722384316748,1.74941097,66253.0,66252.0,0.015913]
[1722384317124,1.52641406,66253.0,66252.0,0.015913]
[1722384317324,1.7493309,66253.0,66252.0,0.015913]
[1722384318531,1.52641406,66253.0,66252.0,0.015913]
[1722384318733,1.39405916,66253.0,66252.0,0.015913]
[1722384318937,1.39391503,66253.0,66252.0,0.015913]
[1722384319390,1.30711503,66253.0,66252.0,0.160313]
[1722384319564,1.09204203,66253.0,66252.0,0.160313]
[1722384319999,1.03588378,66253.0,66252.0,0.098213]
[1722384320201,1.09214956,66253.0,66252.0,0.098213]
[1722384326394,1.09298607,66253.0,66252.0,0.098213]
[1722384326593,1.53524209,66253.0,66252.0,0.015913]
[1722384326830,1.38756802,66253.0,66252.0,0.015913]
[1722384327025,1.53485856,66253.0,66252.0,0.015913]
[1722384327692,1.39447554,66253.0,66252.0,0.015913]
[1722384328303,1.247185,66253.0,66252.0,0.015913]
[1722384328507,1.39445275,66253.0,66252.0,0.015913]
[1722384329317,1.247185,66253.0,66252.0,0.015913]
[1722384329498,1.39473108,66253.0,66252.0,0.015913]
[1722384329821,1.39473103,66253.0,66252.0,0.015913]
[1722384331549,1.09285803,66253.0,66252.0,0.015913]
[1722384331756,1.10241178,66253.0,66252.0,0.015913]
[1722384332984,0.16092978,66253.0,66252.0,0.156413]
[1722384333214,0.07001314,66253.0,66252.0,0.609228]
[1722384333416,0.10399718,66253.0,66252.0,1.5378777]
[1722384333617,0.10399718,66253.0,66252.0,1.546859]
[1722384333618,0.00383,66253.0,66252.0,1.546859]
[1722384333823,0.01249494,66253.0,66252.0,1.299782]
[1722384334024,0.01249494,66253.0,66252.0,0.609228]
[1722384334025,0.11709679,66253.0,66252.0,0.609228]
[1722384334223,0.11709679,66253.0,66252.0,0.602228]
[1722384334224,0.01153081,66253.0,66252.0,0.602228]
[1722384334430,0.00953081,66253.0,66252.0,0.594228]
[1722384334633,0.00953081,66253.0,66252.0,0.305351]
[1722384334634,0.00183,66253.0,66252.0,0.305351]
[1722384334836,0.20943055,66253.0,66252.0,0.154413]
[1722384335032,0.51901613,66253.0,66252.0,0.141413]
[1722384335365,0.52101613,66253.0,66252.0,0.166413]
[1722384335908,0.21914313,66253.0,66252.0,0.166413]
[1722384336109,0.21974647,66253.0,66252.0,0.166413]
[1722384336538,0.16247858,66253.0,66252.0,0.166413]
[1722384336647,0.21974654,66253.0,66252.0,0.166413]
[1722384336873,0.52061954,66253.0,66252.0,0.154413]
[1722384337067,0.51961954,66253.0,66252.0,0.155413]
[1722384337514,0.51961954,66253.0,66252.0,0.169413]
[1722384338744,0.21774654,66253.0,66252.0,0.169413]
[1722384338916,0.06681054,66253.0,66252.0,0.169413]
[1722384339342,0.06695593,66253.0,66252.0,0.169413]
[1722384340136,0.20261473,66253.0,66252.0,0.169413]
[1722384340337,0.35355073,66253.0,66252.0,0.169413]
[1722384340576,0.65542373,66253.0,66252.0,0.169413]
[1722384341000,0.35355073,66253.0,66252.0,0.169413]
[1722384341379,0.21789193,66253.0,66252.0,0.169413]
[1722384342304,0.3535275,66253.0,66252.0,0.169413]
[1722384342606,0.21789193,66253.0,66252.0,0.169413]
[1722384342770,0.35352459,66253.0,66252.0,0.169413]
[1722384343765,0.06695593,66253.0,66252.0,0.622228]
[1722384343969,0.12257492,66253.0,66252.0,0.924105]
[1722384344184,0.0999694,66253.0,66252.0,1.225982]
[1722384344396,0.00954258,66253.0,66252.0,1.225982]
[1722384344588,0.00954258,66253.0,66252.0,1.744959]
[1722384344589,0.00083,66253.0,66252.0,1.744959]
[1722384344844,0.00083,66253.0,66252.0,1.764959]
[1722384345056,0.00083,66253.0,66252.0,1.776959]
[1722384345580,0.00083,66253.0,66252.0,1.766959]
[1722384346197,0.00083,66253.0,66252.0,1.752959]
[1722384346601,0.00183,66253.0,66252.0,1.752959]
[1722384347057,0.00283,66253.0,66252.0,1.766959]
[1722384347437,0.04519117,66262.0,66261.0,0.1533]
[1722384347618,0.11297793,66268.0,66255.0,0.022]
[1722384347619,0.04519117,66267.0,66265.0,0.1433]
[1722384347814,0.06775192,66269.0,66268.0,0.150902]
[1722384348025,0.26381574,66272.0,66269.0,0.1509]
[1722384348026,0.0903357,66270.0,66269.0,0.1509]
[1722384348430,0.0903357,66271.0,66270.0,0.150897]
[1722384348721,0.0903357,66272.0,66270.0,0.150897]
[1722384348969,0.150887,66275.0,66269.0,0.301797]
[1722384349140,0.09030395,66272.0,66271.0,0.150895]
[1722384349336,0.09030395,66272.0,66270.0,0.150896]
[1722384349623,0.0011698,66271.0,66270.0,0.150896]
[1722384349823,0.09030395,66272.0,66270.0,0.150896]
[1722384350157,0.09030395,66272.0,66270.0,0.149896]
[1722384350564,0.26376893,66274.0,66270.0,0.149896]
[1722384350565,0.06769268,66271.0,66270.0,0.149896]
[1722384350788,0.06869268,66271.0,66270.0,0.163896]
[1722384351189,0.06869268,66271.0,66270.0,0.176896]
[1722384351408,0.06869268,66271.0,66270.0,0.190896]
[1722384351729,0.06769268,66272.0,66271.0,0.150895]
[1722384352370,0.06769268,66272.0,66270.0,0.314795]
[1722384352371,0.150891,66273.0,66270.0,0.163897]
[1722384352583,0.06767796,66272.0,66270.0,0.163897]
[1722384352792,0.06767796,66272.0,66267.0,0.301809]
[1722384352793,0.06767796,66272.0,66271.0,0.150895]
[1722384353041,0.06767796,66273.0,66271.0,0.150895]
[1722384353250,0.06767796,66272.0,66271.0,0.891077]
[1722384353456,0.09023728,66274.0,66271.0,0.891077]
[1722384353457,0.06767796,66274.0,66273.0,0.452671]
[1722384353860,0.07639006,66274.0,66273.0,0.150889]
[1722384354475,0.07639006,66274.0,66273.0,0.452671]
[1722384354674,0.0087121,66274.0,66273.0,0.452671]
[1722384354873,0.0087121,66274.0,66273.0,0.480671]
[1722384355939,0.05380225,66274.0,66273.0,0.480671]
[1722384356157,0.0087121,66274.0,66273.0,0.028]
[1722384356561,0.05379681,66274.0,66273.0,0.028]
[1722384357174,0.05379681,66274.0,66273.0,0.178891]
[1722384357492,0.05379641,66274.0,66273.0,0.178891]
[1722384358978,0.05378866,66274.0,66273.0,0.178891]
[1722384359278,0.05378866,66274.0,66273.0,0.028]
[1722384359680,0.05378866,66274.0,66273.0,0.178891]
[1722384361031,0.05378866,66274.0,66273.0,0.028]
[1722384361423,0.05378866,66274.0,66273.0,0.178891]
[1722384362055,0.20467666,66274.0,66273.0,0.028]
[1722384362256,0.1596001,66274.0,66273.0,0.028]
[1722384362460,0.4613771,66274.0,66273.0,0.028]
[1722384363113,0.7631541,66274.0,66273.0,0.028]
[1722384363338,1.19001204,66274.0,66273.0,0.028]
[1722384363539,1.21255032,66274.0,66273.0,0.028]
[1722384363746,1.5632742,66274.0,66273.0,0.028]
[1722384364179,1.6058081,66274.0,66273.0,0.028]
[1722384364386,1.75440489,66274.0,66273.0,0.028]
[1722384364598,1.75440489,66274.0,66273.0,0.014]
[1722384364806,2.2281349,66274.0,66273.0,0.014]
[1722384365007,2.2281349,66274.0,66273.0,0.022]
[1722384365008,2.25976027,66274.0,66273.0,0.022]
[1722384365258,2.25976027,66274.0,66273.0,0.014]
[1722384365259,2.23976027,66274.0,66273.0,0.014]
[1722384365612,0.150936,66253.0,66248.0,0.0797]
[1722384365827,0.19600351,66253.0,66248.0,0.0797]
[1722384366020,0.20474097,66253.0,66249.0,0.150945]
[1722384366255,0.20474097,66253.0,66248.0,0.0797]
[1722384366256,0.15967346,66253.0,66248.0,0.0797]
[1722384366397,0.46154646,66253.0,66248.0,0.0797]
[1722384366598,0.15967346,66253.0,66248.0,0.0797]
[1722384366800,0.15967346,66253.0,66249.0,0.150944]
[1722384367002,0.20474097,66253.0,66249.0,0.150944]
[1722384367277,0.20474097,66253.0,66248.0,0.0797]
[1722384367488,0.20577232,66253.0,66252.0,0.028913]
[1722384367691,0.20677232,66253.0,66252.0,0.028913]
[1722384369287,0.46354646,66253.0,66252.0,0.028913]
[1722384369773,0.83306775,66253.0,66252.0,0.028913]
[1722384369904,0.88994054,66253.0,66252.0,0.028913]
[1722384370111,0.91248997,66253.0,66252.0,0.028913]
[1722384370376,1.46962111,66253.0,66252.0,0.028913]
[1722384370605,1.35687396,66253.0,66252.0,0.028913]
[1722384370815,1.49916988,66253.0,66252.0,0.028913]
[1722384371192,1.36646117,66253.0,66252.0,0.028913]
[1722384372213,1.36546117,66253.0,66252.0,0.014913]
[1722384372444,1.66733417,66253.0,66252.0,0.014913]
[1722384372615,1.66633417,66253.0,66252.0,0.000913]
[1722384372820,1.81802849,66253.0,66252.0,0.006913]
[1722384373442,1.81802849,66253.0,66252.0,0.000913]
[1722384373443,1.81702849,66253.0,66252.0,0.000913]
[1722384373657,1.81702849,66253.0,66252.0,0.006913]
[1722384373862,1.75995978,66253.0,66252.0,0.000913]
[1722384374067,1.81695502,66253.0,66252.0,0.000913]
[1722384374288,1.81695502,66253.0,66252.0,0.001913]
[1722384374495,1.81695469,66253.0,66252.0,0.001913]
[1722384375125,1.51508169,66253.0,66252.0,0.001913]
[1722384375327,1.36438737,66253.0,66252.0,0.001913]
[1722384376334,1.22228737,66253.0,66252.0,0.001913]
[1722384377130,1.16529246,66253.0,66252.0,0.001913]
[1722384377333,1.35789938,66253.0,66252.0,0.001913]
[1722384377541,1.22264417,66253.0,66252.0,0.001913]
[1722384378423,1.3986294,66253.0,66252.0,0.001913]
[1722384378605,1.263386,66253.0,66252.0,0.001913]
[1722384378810,1.22264417,66253.0,66252.0,0.001913]
[1722384379653,1.3578765,66253.0,66252.0,0.001913]
[1722384379848,1.22264417,66253.0,66252.0,0.001913]
[1722384380227,1.35787705,66253.0,66252.0,0.001913]
[1722384380439,1.35787723,66253.0,66252.0,0.001913]
[1722384380629,1.22264417,66253.0,66252.0,0.001913]
[1722384381207,1.35785406,66253.0,66252.0,0.001913]
[1722384382028,1.22264417,66253.0,66252.0,0.001913]
[1722384383773,1.22222788,66253.0,66252.0,0.001913]
[1722384386995,1.50880135,66253.0,66252.0,0.001913]
[1722384387203,1.50880135,66253.0,66225.0,0.00935]
[1722384387204,1.056888,66232.0,66231.0,0.009339]
[1722384387433,1.13906365,66232.0,66231.0,0.009339]
[1722384387601,0.29907823,66232.0,66231.0,0.145239]
[1722384388185,0.02322724,66232.0,66231.0,0.296225]
[1722384388413,0.02422724,66232.0,66231.0,0.310225]
[1722384388593,0.02422724,66232.0,66231.0,0.159239]
[1722384390165,0.02522724,66232.0,66231.0,0.173239]
[1722384390374,0.02522724,66232.0,66231.0,0.159239]
[1722384390595,0.02522724,66232.0,66231.0,0.173239]
[1722384390835,0.02622724,66232.0,66231.0,0.928171]
[1722384391073,0.01160875,66232.0,66231.0,0.928171]
[1722384391333,0.003,66232.0,66231.0,0.928171]
[1722384392431,0.003,66232.0,66231.0,0.626198]
[1722384393067,0.003,66232.0,66231.0,0.928171]
[1722384393260,0.003,66232.0,66231.0,0.626198]
[1722384393461,0.003,66232.0,66231.0,0.928171]
[1722384394551,0.003,66232.0,66231.0,1.230144]
[1722384394926,0.301913,66245.0,66231.0,1.230144]
[1722384394927,0.150957,66244.0,66240.0,0.150965]
[1722384395130,0.05766106,66243.0,66241.0,0.1399]
[1722384395332,0.0015542,66242.0,66241.0,0.1379]
[1722384395530,0.05921109,66242.0,66241.0,0.1379]
[1722384395740,0.06848959,66242.0,66241.0,0.892717]
[1722384395938,0.06693539,66242.0,66241.0,0.892717]
[1722384396168,0.05765689,66242.0,66241.0,0.892717]
[1722384396373,0.001,66244.0,66242.0,0.301923]
[1722384396581,0.001,66244.0,66243.0,0.150959]
[1722384396784,0.05877473,66244.0,66243.0,0.150959]
[1722384396988,0.05877473,66244.0,66241.0,0.1379]
[1722384397202,0.05932893,66243.0,66242.0,0.150961]
[1722384397373,0.05932893,66243.0,66241.0,0.1519]
[1722384397580,0.05777473,66242.0,66241.0,0.288863]
[1722384397730,0.27373153,66242.0,66241.0,0.1449]
[1722384398140,0.27373153,66242.0,66241.0,0.1379]
[1722384398337,0.21801188,66242.0,66241.0,0.1379]
[1722384398567,0.21801188,66242.0,66241.0,0.1519]
[1722384399020,0.21801188,66242.0,66241.0,0.1379]
[1722384399239,0.51993488,66242.0,66241.0,0.1379]
[1722384399457,0.61352268,66242.0,66241.0,0.1509]
[1722384399673,0.61352268,66242.0,66241.0,0.1649]
[1722384400527,0.61352268,66242.0,66241.0,0.1509]
[1722384400738,0.31159968,66242.0,66241.0,0.1649]
[1722384401147,0.31315388,66242.0,66241.0,0.1649]
[1722384401759,0.61507688,66242.0,66241.0,0.1649]
[1722384401965,0.66012009,66242.0,66241.0,0.1649]
[1722384402166,0.61352268,66242.0,66241.0,0.1649]
[1722384402390,0.61507688,66242.0,66241.0,0.1649]
[1722384402996,0.21898676,66242.0,66241.0,0.1649]
[1722384403216,0.21898634,66242.0,66241.0,0.1649]
[1722384403535,0.16179135,66242.0,66241.0,0.1649]
[1722384403735,0.16179135,66242.0,66241.0,0.027]
[1722384403736,0.51935488,66242.0,66241.0,0.027]
[1722384403884,0.62348145,66242.0,66241.0,0.027]
[1722384404288,1.01402785,66242.0,66241.0,0.027]
[1722384404701,0.92385025,66242.0,66241.0,0.027]
[1722384405098,0.9794031,66242.0,66241.0,0.027]
[1722384405304,0.62209691,66242.0,66241.0,0.027]
[1722384405507,0.51952454,66242.0,66241.0,0.027]
[1722384406523,0.82144754,66242.0,66241.0,0.027]
[1722384407238,0.82300174,66242.0,66241.0,0.027]
[1722384407677,1.27012474,66242.0,66241.0,0.027]
[1722384407893,1.35996951,66242.0,66241.0,0.027]
[1722384408091,1.51066383,66242.0,66241.0,0.027]
[1722384408267,1.66293585,66242.0,66241.0,0.027]
[1722384408523,1.51066383,66242.0,66241.0,0.027]
[1722384409578,1.36190047,66242.0,66241.0,0.027]
[1722384409783,1.360625,66242.0,66241.0,0.027]
[1722384411918,1.36044585,66242.0,66241.0,0.027]
[1722384412928,1.359196,66242.0,66241.0,0.027]
[1722384413165,1.213996,66242.0,66241.0,0.027]
[1722384413392,0.91207336,66242.0,66241.0,0.027]
[1722384414129,0.82085567,66242.0,66241.0,0.027]
[1722384414501,0.82085567,66242.0,66241.0,0.027913]
[1722384414502,0.8210055,66242.0,66241.0,0.027913]
[1722384414702,0.8218355,66242.0,66241.0,0.027913]
[1722384415891,0.97442168,66242.0,66241.0,0.027913]
[1722384416115,0.8216824,66242.0,66241.0,0.027913]
[1722384416292,0.97429957,66242.0,66241.0,0.027913]
[1722384416503,0.8216824,66242.0,66241.0,0.027913]
[1722384416909,0.0668754,66242.0,66241.0,0.027913]
[1722384417110,0.5197594,66242.0,66241.0,0.027913]
[1722384417286,0.2178364,66242.0,66241.0,0.027913]
[1722384417977,0.2178364,66242.0,66241.0,0.322976]
[1722384417978,0.0668754,66242.0,66241.0,0.322976]
[1722384418179,0.0668754,66242.0,66241.0,0.172013]
[1722384419208,0.0668754,66242.0,66241.0,0.322976]
[1722384419404,0.06644478,66242.0,66241.0,0.322976]
[1722384419661,0.20214471,66242.0,66241.0,0.624903]
[1722384419838,0.20214471,66242.0,66241.0,1.228757]
[1722384419839,0.06644478,66242.0,66241.0,1.228757]
[1722384420037,0.00083,66242.0,66241.0,1.228757]
[1722384420247,0.11390504,66242.0,66241.0,1.215757]
[1722384420450,0.11390504,66242.0,66241.0,1.201757]
[1722384420683,0.00083,66242.0,66241.0,1.215757]
[1722384420852,0.00083,66242.0,66241.0,1.229757]
[1722384421051,0.11390257,66242.0,66241.0,1.215757]
[1722384421270,0.11390257,66242.0,66241.0,1.201757]
[1722384421465,0.11390257,66242.0,66241.0,1.527684]
[1722384421670,0.11390257,66242.0,66241.0,2.00224404]
[1722384421671,0.00083,66242.0,66241.0,2.00224404]
[1722384421869,0.00083,66242.0,66241.0,2.02524404]
[1722384422293,0.00083,66242.0,66241.0,2.28434404]
[1722384422495,0.00083,66242.0,66241.0,2.42382593]
[1722384422703,0.00083,66242.0,66241.0,2.40982227]
[1722384422902,0.04523584,66253.0,66250.0,0.01]
[1722384423123,0.04523584,66254.0,66253.0,0.300136]
[1722384423343,0.04523584,66256.0,66255.0,0.601996]
[1722384423570,0.06785376,66258.0,66257.0,0.452781]
[1722384423772,0.06778387,66258.0,66255.0,0.1492]
[1722384423927,0.06778387,66258.0,66257.0,0.452781]
[1722384424128,0.06778387,66258.0,66257.0,1.056489]
[1722384424334,0.06778387,66259.0,66258.0,0.226525]
[1722384424664,0.09034011,66260.0,66259.0,0.301845]
[1722384424982,0.09034011,66260.0,66259.0,0.754612]
[1722384425336,0.06771091,66260.0,66259.0,0.754612]
[1722384425540,0.06926511,66260.0,66259.0,0.754612]
[1722384426402,0.0015542,66260.0,66259.0,0.754612]
[1722384427260,0.04666009,66260.0,66259.0,0.768612]
[1722384427479,0.04510589,66260.0,66259.0,0.768612]
[1722384427636,0.04510589,66260.0,66259.0,1.161457]
[1722384427837,0.0015542,66261.0,66260.0,0.819402]
[1722384428039,0.04510351,66263.0,66261.0,0.529754]
[1722384428040,0.0015542,66262.0,66261.0,0.529754]
[1722384428262,0.0015542,66262.0,66261.0,1.133426]
[1722384428502,0.0015542,66265.0,66264.0,0.754557]
[1722384428910,0.04665771,66267.0,66266.0,0.452719]
[1722384429127,0.06920688,66267.0,66266.0,0.452719]
[1722384429352,0.06920688,66268.0,66267.0,0.150904]
[1722384429727,0.301767,66277.0,66268.0,0.150902]
[1722384429728,0.09175777,66269.0,66268.0,0.150902]
[1722384429922,0.0015542,66269.0,66268.0,0.150902]
[1722384430128,0.0015542,66269.0,66267.0,0.150904]
[1722384430303,0.06914242,66269.0,66267.0,0.150904]
[1722384430505,0.150906,66267.0,66263.0,0.150913]
[1722384430707,0.150906,66267.0,66261.0,0.378836]
[1722384430708,0.19596684,66265.0,66264.0,0.014]
[1722384431009,0.19596684,66265.0,66261.0,0.077]
[1722384431010,0.150912,66264.0,66261.0,0.077]
[1722384431435,0.01459969,66263.0,66261.0,0.077]
[1722384431633,0.150916,66262.0,66261.0,0.077]
[1722384431898,0.150916,66262.0,66257.0,0.0762]
[1722384431899,0.01460439,66262.0,66257.0,0.0762]
[1722384432024,0.01460439,66262.0,66259.0,0.150922]
[1722384432225,0.0015542,66261.0,66259.0,0.150922]
[1722384432431,0.01459969,66260.0,66259.0,0.150922]
[1722384432840,0.150918,66261.0,66257.0,0.227125]
[1722384433040,0.01615389,66260.0,66258.0,0.150924]
[1722384433374,0.01615389,66260.0,66257.0,0.0762]
[1722384433736,0.01615389,66260.0,66258.0,0.150924]
[1722384433947,0.01615389,66260.0,66259.0,0.014]
[1722384433948,0.16707389,66260.0,66259.0,0.014]
[1722384434181,0.16551969,66260.0,66259.0,0.014]
[1722384434381,0.46736069,66260.0,66259.0,0.014]
[1722384435002,0.16551969,66260.0,66259.0,0.014]
[1722384436164,0.46736069,66260.0,66259.0,0.028]
[1722384436373,1.20499032,66260.0,66259.0,0.028]
[1722384436603,0.90314932,66260.0,66259.0,0.028]
[1722384436805,0.9272194,66260.0,66259.0,0.028]
[1722384437008,0.95922306,66260.0,66259.0,0.028]
[1722384437240,0.9272194,66260.0,66259.0,0.014]
[1722384437450,0.83715589,66260.0,66259.0,0.025]
[1722384437663,0.25556026,66260.0,66259.0,0.025]
[1722384437884,0.08213137,66260.0,66259.0,0.025]
[1722384438086,0.01615389,66260.0,66259.0,0.175922]
[1722384438291,0.01615389,66260.0,66259.0,0.321022]
[1722384438538,0.01459969,66260.0,66259.0,0.1701]
[1722384438806,0.46736069,66260.0,66259.0,0.0919]
[1722384439008,0.05962523,66260.0,66259.0,0.024]
[1722384439215,0.01459969,66260.0,66259.0,0.024]
[1722384439420,0.01459969,66260.0,66259.0,0.011]
[1722384439613,0.01615389,66260.0,66259.0,0.025]
[1722384439823,0.01615389,66260.0,66259.0,0.014]
[1722384440043,0.0015542,66258.0,66255.0,0.215131]
[1722384440216,0.0015542,66258.0,66257.0,0.150927]
[1722384440369,0.0015542,66258.0,66256.0,0.150928]
[1722384440370,0.01461381,66257.0,66256.0,0.150928]
[1722384440583,0.04502554,66259.0,66254.0,0.0809]
[1722384440584,0.150932,66255.0,66254.0,0.0809]
[1722384440970,0.0015542,66256.0,66254.0,0.0809]
[1722384441171,0.01459994,66255.0,66254.0,0.0809]
[1722384441399,0.01615414,66255.0,66254.0,0.0809]
[1722384442544,0.01459994,66255.0,66254.0,0.0809]
[1722384442737,0.150929,66256.0,66254.0,0.0949]
[1722384442969,0.01615414,66255.0,66254.0,0.0809]
[1722384443278,0.01615414,66255.0,66254.0,0.0949]
[1722384443401,0.01459994,66255.0,66254.0,0.0949]
[1722384443647,0.01459994,66255.0,66254.0,0.1089]